bitfinex-derivatives/quotes_SOLF0:USTF0_20250110
["timestamp","ask_amount","ask_price","bid_price","bid_amount"]
[1736538415217,13.42794298,189.99,189.96,2.6319]
[1736538419914,2.6314,190.0,189.97,2.6317]
[1736538420114,10.79634298,190.02,189.91,10.36588003]
[1736538420318,10.79634298,190.05,189.94,10.79634298]
[1736538420927,2.6308,190.04,190.02,2.6311]
[1736538421526,10.79634298,190.05,189.94,10.79634298]
[1736538421724,10.79634298,190.02,189.92,11.45403027]
[1736538421918,10.79634298,189.99,189.92,11.45403027]
[1736538422119,13.42794298,189.99,189.96,2.6319]
[1736538422423,13.42794298,189.99,189.91,32.19974272]
[1736538422424,10.79634298,189.99,189.91,32.19974272]
[1736538422817,2.6313,190.01,189.98,2.6317]
[1736538423218,10.79634298,190.02,189.91,3.089]
[1736538423425,10.79634298,190.02,189.91,13.88534298]
[1736538424123,10.79634298,190.02,189.91,21.16222301]
[1736538424514,2.6314,190.01,189.91,21.16222301]
[1736538425122,2.6314,190.01,189.98,2.6315]
[1736538425619,2.6314,190.01,189.91,21.16222301]
[1736538425820,13.42744298,190.02,189.99,2.6315]
[1736538426222,10.79634298,190.02,189.99,2.6315]
[1736538426419,10.79634298,190.02,189.92,7.27688003]
[1736538426620,10.79634298,190.02,189.92,29.11074272]
[1736538426820,2.6314,190.0,189.92,29.11074272]
[1736538427020,10.79634298,190.02,189.98,2.6317]
[1736538427417,2.6313,190.01,189.98,2.6317]
[1736538427620,10.79634298,190.02,190.01,2.6313]
[1736538427826,16.33634298,190.05,189.92,7.27688003]
[1736538428027,18.96704298,190.05,189.93,10.79634298]
[1736538428325,16.33634298,190.05,190.01,2.6311]
[1736538428926,16.33634298,190.05,189.95,29.11074272]
[1736538429125,16.33634298,190.05,190.01,2.6311]
[1736538429831,18.96704298,190.05,190.01,2.6311]
[1736538430219,10.79634298,190.05,189.96,1.5481]
[1736538430425,10.79634298,190.11,189.96,12.34444298]
[1736538430627,10.79634298,190.11,189.99,10.79634298]
[1736538430924,88.9296,190.13,190.02,10.79634298]
[1736538431124,10.79634298,190.14,190.03,1.6518]
[1736538431627,13.42594298,190.14,190.03,1.6518]
[1736538431833,10.79634298,190.14,190.03,1.6518]
[1736538432533,10.79634298,190.11,190.06,2.6305]
[1736538433426,2.6302,190.09,190.06,2.6305]
[1736538433726,10.79634298,190.11,190.06,2.6305]
[1736538433927,10.79634298,190.08,190.0,3.2418]
[1736538434128,2.6306,190.06,190.0,3.2418]
[1736538434328,10.79634298,190.08,190.0,3.2418]
[1736538434528,10.79634298,190.08,190.03,2.6309]
[1736538434832,2.6305,190.07,190.0,3.2418]
[1736538435032,10.79634298,190.08,190.0,3.2418]
[1736538435835,10.79634298,190.11,190.0,3.2418]
[1736538436031,10.79634298,190.11,190.08,2.6302]
[1736538436337,10.79634298,190.11,190.0,3.2418]
[1736538437231,13.42634298,190.11,190.07,2.6304]
[1736538437430,10.79634298,190.11,190.0,3.2418]
[1736538437833,2.6302,190.09,190.06,2.6305]
[1736538438034,10.79634298,190.11,190.0,3.2418]
[1736538438838,13.42624298,190.11,190.0,3.2418]
[1736538439538,2.63,190.1,190.07,2.6303]
[1736538439932,10.79634298,190.11,190.06,2.6304]
[1736538440239,2.6302,190.09,190.06,2.6304]
[1736538440940,2.63,190.1,190.07,2.6304]
[1736538441335,10.79634298,190.11,190.07,2.6304]
[1736538441336,13.42624298,190.11,190.07,2.6304]
[1736538441538,10.79634298,190.11,190.0,3.2418]
[1736538442039,10.79634298,190.14,190.11,2.6298]
[1736538442435,10.79634298,190.14,190.0,3.2418]
[1736538442944,10.79634298,190.14,190.0,8.7818]
[1736538443639,16.05734298,190.14,190.0,8.7818]
[1736538444241,18.68684298,190.14,190.11,2.6298]
[1736538445144,5.261,190.12,190.0,3.2418]
[1736538445341,10.79634298,190.1,190.0,3.2418]
[1736538446034,13.42644298,190.1,190.0,3.2418]
[1736538446343,10.79634298,190.1,190.0,3.2418]
[1736538446939,10.79634298,190.13,190.03,2.631]
[1736538447145,10.79634298,190.13,190.04,1.6104]
[1736538447745,10.79634298,190.13,190.08,2.6302]
[1736538447746,2.6298,190.12,190.08,2.6302]
[1736538448239,7.8908,190.12,190.04,1.6104]
[1736538448744,12.30864298,190.17,190.04,1.6104]
[1736538448745,13.42634298,190.1,190.04,1.6104]
[1736538449141,13.42634298,190.1,190.06,2.6305]
[1736538449142,10.79634298,190.1,190.06,2.6305]
[1736538449343,7.8912,190.09,190.06,2.6305]
[1736538449543,10.79634298,190.1,190.04,1.6104]
[1736538450244,18.68734298,190.1,190.07,2.6303]
[1736538450444,16.05734298,190.1,190.04,1.6104]
[1736538450646,10.79634298,190.1,190.04,1.6104]
[1736538451646,10.79634298,190.1,190.08,2.6302]
[1736538451841,13.42594298,190.13,190.04,1.6104]
[1736538452046,10.79634298,190.13,190.04,1.6104]
[1736538452349,10.79634298,190.16,190.04,1.6104]
[1736538452543,13.42564298,190.16,190.04,1.6104]
[1736538453349,18.68664298,190.16,190.04,1.6104]
[1736538453751,10.79634298,190.16,190.05,10.79634298]
[1736538453952,10.79634298,190.16,190.15,2.6293]
[1736538454255,10.79634298,190.16,190.05,10.79634298]
[1736538454451,7.8904,190.15,190.11,2.6297]
[1736538454652,10.79634298,190.13,190.11,2.6297]
[1736538454851,10.79634298,190.13,190.04,1.6104]
[1736538455956,2.6295,190.14,190.11,2.6298]
[1736538456350,2.6295,190.14,190.04,1.6104]
[1736538456855,10.79634298,190.16,190.04,1.6104]
[1736538457047,2.6293,190.15,190.13,2.6296]
[1736538457645,2.6293,190.15,190.04,1.6104]
[1736538457857,2.6293,190.15,190.12,2.6297]
[1736538458654,2.63,190.11,190.07,2.6304]
[1736538458853,10.79634298,190.1,190.01,29.11074272]
[1736538459351,2.6303,190.09,190.06,2.6305]
[1736538459753,2.6303,190.09,190.05,2.6307]
[1736538460254,2.6303,190.09,190.0,11.21062994]
[1736538460255,2.6303,190.09,190.06,2.6305]
[1736538460656,2.6303,190.09,190.0,11.21062994]
[1736538461059,2.6303,190.09,190.05,2.6306]
[1736538463356,2.6304,190.07,190.04,2.6308]
[1736538464159,2.6304,190.07,190.0,11.21062994]
[1736538464354,2.6306,190.06,190.03,2.6309]
[1736538464560,10.79634298,190.07,189.99,1.6633]
[1736538466063,2.6308,190.05,190.02,2.631]
[1736538467459,10.79634298,190.07,189.99,1.6633]
[1736538467666,10.79634298,190.08,189.99,1.6633]
[1736538468162,13.42664298,190.08,190.04,2.6307]
[1736538468762,2.6305,190.07,190.04,2.6307]
[1736538470070,10.79634298,190.11,189.99,12.45964298]
[1736538470265,10.79634298,190.14,190.02,10.79634298]
[1736538471167,2.6299,190.12,190.08,2.6302]
[1736538472166,10.79634298,190.14,190.08,2.6302]
[1736538472371,2.6299,190.12,190.08,2.6302]
[1736538472767,10.79634298,190.14,190.08,2.6302]
[1736538472968,2.63,190.1,190.07,2.6304]
[1736538480879,10.79634298,190.11,190.05,7.27688003]
[1736538481674,2.6303,190.08,190.05,9.90758003]
[1736538481883,2.6303,190.08,190.05,2.6307]
[1736538483280,2.6305,190.07,190.04,2.6308]
[1736538484784,2.6305,190.07,190.05,2.6307]
[1736538484982,2.6303,190.08,190.05,2.6307]
[1736538486783,2.6304,190.08,190.04,2.6308]
[1736538487083,5.261,190.1,190.04,2.6308]
[1736538487383,7.6598135,190.07,190.04,2.6308]
[1736538487786,10.2903135,190.07,190.04,2.6308]
[1736538487979,7.6598135,190.05,190.02,7.27688003]
[1736538489184,10.2905135,190.05,190.02,2.6311]
[1736538490890,7.6598135,190.03,190.0,29.11074272]
[1736538491189,10.52,190.14,190.0,29.11074272]
[1736538491190,7.6598135,190.01,190.0,29.11074272]
[1736538492193,10.2911135,190.01,190.0,29.11074272]
[1736538492691,10.2911135,190.01,189.98,2.6317]
[1736538493203,2.6319,189.96,189.95,7.27688003]
[1736538493395,10.78507845,189.97,189.95,7.27688003]
[1736538493992,10.78507845,190.0,189.95,7.27688003]
[1736538494695,10.78507845,190.0,189.93,58.24203227]
[1736538494893,10.78507845,190.0,189.94,2.6321]
[1736538495098,10.78507845,190.0,189.92,8.90408003]
[1736538495294,2.6318,189.97,189.93,2.6323]
[1736538495597,10.78507845,190.0,189.92,8.90408003]
[1736538495897,2.6318,189.98,189.94,2.6322]
[1736538496698,1.6592,190.07,189.92,1.6272]
[1736538496898,10.78507845,190.05,189.92,12.41227845]
[1736538497592,2.6312,190.02,189.92,12.41227845]
[1736538497798,10.78507845,190.05,189.92,12.41227845]
[1736538498297,2.6309,190.04,189.93,4.67364752]
[1736538498702,2.6309,190.04,190.0,2.6313]
[1736538498899,10.78507845,190.05,190.0,2.6313]
[1736538499206,2.6311,190.03,190.0,2.6313]
[1736538499405,10.78507845,190.05,189.99,2.6315]
[1736538499801,2.631,190.04,189.99,2.6315]
[1736538499996,10.78507845,190.05,189.99,2.6315]
[1736538500302,2.6309,190.04,190.01,2.6312]
[1736538500502,10.78507845,190.05,190.01,2.6312]
[1736538500707,10.78507845,190.08,189.95,12.37257845]
[1736538501002,2.6307,190.06,190.03,2.6309]
[1736538501604,2.6304,190.07,190.04,2.6308]
[1736538501909,10.78507845,190.08,189.98,10.78507845]
[1736538502410,10.78507845,190.08,190.04,2.6308]
[1736538504209,2.6304,190.07,190.04,2.6308]
[1736538504408,10.78507845,190.14,190.01,39.89582117]
[1736538504609,2.6297,190.13,190.02,1.5729]
[1736538504909,2.6297,190.13,190.03,7.27688003]
[1736538506007,2.6297,190.12,190.03,7.27688003]
[1736538506310,2.6297,190.12,190.06,29.11074272]
[1736538506608,2.6297,190.12,190.08,2.6302]
[1736538506811,2.6297,190.12,190.06,29.11074272]
[1736538507312,2.6297,190.12,190.05,30.71764272]
[1736538508113,2.6297,190.12,190.08,2.6302]
[1736538509107,1.6649,190.23,190.07,10.78507845]
[1736538509311,10.78507845,190.19,190.07,12.41817845]
[1736538509614,10.78507845,190.16,190.1,2.6299]
[1736538509815,10.78507845,190.16,190.07,1.6331]
[1736538510013,10.78507845,190.16,190.1,7.27688003]
[1736538510906,2.6295,190.15,190.11,2.6298]
[1736538511718,2.6293,190.16,190.12,2.6297]
[1736538511916,10.78507845,190.19,190.12,2.6297]
[1736538512419,10.78507845,190.19,190.07,1.6331]
[1736538512711,2.6294,190.15,190.11,2.6298]
[1736538512913,10.78507845,190.19,190.07,1.6331]
[1736538513221,10.78507845,190.13,190.07,7.27688003]
[1736538514118,2.6298,190.12,190.09,2.6301]
[1736538514315,2.6298,190.12,190.05,1.6069]
[1736538515223,2.6299,190.11,190.07,2.6303]
[1736538515413,10.78507845,190.13,190.05,1.6069]
[1736538515917,2.6298,190.12,190.08,2.6302]
[1736538516718,2.6298,190.12,190.05,1.6069]
[1736538517115,1.6649,190.23,190.05,1.6069]
[1736538517310,5.2546,190.3,190.18,2.6289]
[1736538517513,10.78507845,190.24,190.18,2.6289]
[1736538517709,2.6284,190.22,190.18,2.6289]
[1736538518510,2.6285,190.21,190.18,2.6289]
[1736538519321,2.6285,190.21,190.17,2.629]
[1736538520222,10.78507845,190.24,190.18,2.6288]
[1736538520420,16.05107845,190.24,190.18,2.6288]
[1736538520920,10.78507845,190.24,190.18,2.6288]
[1736538521119,2.6287,190.2,190.16,2.6291]
[1736538521919,2.629,190.18,190.14,2.6294]
[1736538522219,10.78507845,190.21,190.11,8.86608003]
[1736538522415,2.6296,190.14,190.11,7.27688003]
[1736538523220,10.78507845,190.18,190.08,1.665]
[1736538523419,2.6294,190.15,190.11,2.6298]
[1736538524023,2.6294,190.15,190.08,1.665]
[1736538524216,10.78507845,190.18,190.08,1.665]
[1736538524523,2.6291,190.17,190.08,1.665]
[1736538524717,5.266,190.2,190.13,2.6295]
[1736538524914,2.6293,190.16,190.13,2.6295]
[1736538525223,10.78507845,190.21,190.08,1.665]
[1736538525522,2.629,190.18,190.08,1.665]
[1736538525722,10.78507845,190.21,190.1,10.78507845]
[1736538525923,10.78507845,190.24,190.1,10.78507845]
[1736538526124,2.6286,190.21,190.17,2.6289]
[1736538527922,2.6286,190.2,190.17,2.6289]
[1736538528526,2.6285,190.21,190.17,2.6289]
[1736538529728,10.78507845,190.24,190.13,10.78507845]
[1736538530024,15.79,190.37,190.11,7.27688003]
[1736538530025,7.1905,190.34,190.19,10.78507845]
[1736538530226,2.6275,190.29,190.24,2.628]
[1736538530423,10.78507845,190.33,190.24,2.628]
[1736538530924,5.266,190.32,190.24,2.628]
[1736538532021,10.78507845,190.3,190.22,2.6283]
[1736538532425,10.78507845,190.3,190.2,1.6153]
[1736538532622,10.78507845,190.27,190.2,1.6153]
[1736538533017,2.628,190.25,190.21,2.6285]
[1736538533923,2.6282,190.24,190.2,4.2439]
[1736538534624,2.6282,190.23,190.2,4.2439]
[1736538537630,10.78507845,190.27,190.17,7.27688003]
[1736538538333,2.6284,190.22,190.18,2.6289]
[1736538538628,10.78507845,190.27,190.17,7.27688003]
[1736538538828,2.6285,190.21,190.17,9.90588003]
[1736538539023,10.78507845,190.27,190.17,7.27688003]
[1736538539224,10.78507845,190.27,190.15,10.42408003]
[1736538539420,2.6282,190.23,190.19,2.6287]
[1736538539626,10.78507845,190.27,190.16,10.78507845]
[1736538539928,16.32507845,190.3,190.19,10.78507845]
[1736538540130,2.6278,190.26,190.22,2.6283]
[1736538540728,2.6274,190.29,190.26,2.6278]
[1736538540935,10.78507845,190.37,190.25,10.78507845]
[1736538541329,2.6267,190.34,190.3,2.6272]
[1736538542034,2.6266,190.35,190.31,2.627]
[1736538542528,1.5415,190.39,190.28,10.78507845]
[1736538542733,217.5507321,190.69,190.28,10.78507845]
[1736538542734,5.266,190.42,190.28,10.78507845]
[1736538543235,2.6263,190.38,190.33,2.6268]
[1736538543432,2.6263,190.38,190.28,10.78507845]
[1736538543632,2.6263,190.38,190.29,52.31033615]
[1736538544231,2.6263,190.38,190.29,33.7506614]
[1736538544534,2.6263,190.37,190.32,2.6268]
[1736538544732,5.54,190.45,190.3,4.63991868]
[1736538544733,10.78507845,190.4,190.3,4.63991868]
[1736538544928,10.78507845,190.43,190.3,4.63991868]
[1736538545133,10.78507845,190.43,190.31,12.34257845]
[1736538545332,10.78507845,190.43,190.31,15.51207845]
[1736538546536,10.78507845,190.43,190.32,11.90593371]
[1736538546736,2.6262,190.38,190.33,2.6268]
[1736538547439,2.6259,190.4,190.35,2.6264]
[1736538550138,10.78507845,190.43,190.35,2.6264]
[1736538550333,10.78507845,190.4,190.31,4.727]
[1736538550538,10.78507845,190.4,190.31,1.5575]
[1736538550939,10.78507845,190.43,190.27,29.11074272]
[1736538550940,10.78507845,190.37,190.27,29.11074272]
[1736538551941,10.78507845,190.37,190.26,1.6486]
[1736538552142,10.78507845,190.37,190.28,2.6275]
[1736538552641,2.627,190.32,190.28,2.6275]
[1736538553641,10.78507845,190.34,190.26,1.6486]
[1736538554042,2.6272,190.31,190.26,1.6486]
[1736538555246,10.78507845,190.34,190.26,1.6486]
[1736538555638,2.6274,190.3,190.26,1.6486]
[1736538556243,2.6274,190.3,190.26,4.2763]
[1736538557034,10.806,190.38,190.26,1.6486]
[1736538557250,10.78507845,190.39,190.28,10.78507845]
[1736538557541,2.6265,190.36,190.31,2.627]
[1736538557837,10.78507845,190.39,190.26,1.6486]
[1736538558035,10.78507845,190.36,190.26,1.6486]
[1736538558237,10.78507845,190.33,190.26,1.6486]
[1736538558745,2.6276,190.28,190.26,1.6486]
[1736538559344,2.6279,190.26,190.2,32.28604272]
[1736538559644,10.78507845,190.3,190.2,33.94744272]
[1736538559945,10.78507845,190.3,190.2,4.8367]
[1736538561047,2.628,190.25,190.2,4.8367]
[1736538561243,10.78507845,190.33,190.2,4.8367]
[1736538561244,10.78507845,190.27,190.2,4.8367]
[1736538561438,19.11504882,190.26,190.2,1.6614]
[1736538561845,19.11504882,190.26,190.19,7.46092003]
[1736538562039,2.6286,190.2,190.19,7.46092003]
[1736538563144,2.6286,190.2,190.19,0.18404]
[1736538564350,7.8946,190.2,190.19,0.18404]
[1736538564943,2.6292,190.17,190.14,4.5882]
[1736538565449,2.6292,190.16,190.14,1.5329]
[1736538567448,5.266,190.19,190.1,7.27688003]
[1736538567641,19.11504882,190.2,190.1,7.27688003]
[1736538567846,5.266,190.19,190.09,40.31618543]
[1736538568047,2.6295,190.14,190.09,40.31618543]
[1736538568248,5.266,190.19,190.09,40.31618543]
[1736538568452,2.6297,190.13,190.09,40.31618543]
[1736538568750,24.65504882,190.2,190.09,40.31618543]
[1736538569052,2.6297,190.13,190.09,11.20544271]
[1736538569253,19.11504882,190.17,190.09,11.20544271]
[1736538569454,19.11504882,190.14,190.09,11.20544271]
[1736538569851,2.63,190.1,190.09,11.20544271]
[1736538570355,19.11504882,190.14,190.07,1.6587]
[1736538570551,2.6302,190.09,190.07,1.6587]
[1736538570752,19.11504882,190.14,190.07,1.6587]
[1736538571554,2.6303,190.09,190.07,1.6587]
[1736538571949,1.5608,190.19,190.07,1.6587]
[1736538572555,2.6296,190.13,190.09,2.6301]
[1736538573860,2.6296,190.13,190.08,2.6303]
[1736538574366,7.8956,190.13,190.08,2.6303]
[1736538574660,19.11504882,190.14,190.07,1.6587]
[1736538575163,2.6301,190.1,190.07,1.6587]
[1736538575365,19.11504882,190.14,190.07,1.6587]
[1736538575658,5.266,190.13,190.07,1.6587]
[1736538576164,2.6303,190.09,190.07,1.6587]
[1736538576756,26.21584882,190.19,190.07,1.6587]
[1736538577757,5.266,190.18,190.07,1.6587]
[1736538578164,2.6296,190.13,190.09,2.63]
[1736538578764,2.6294,190.15,190.1,2.6299]
[1736538578970,26.21584882,190.19,190.1,2.6299]
[1736538579170,2.6296,190.13,190.09,2.6301]
[1736538579667,2.6298,190.12,190.08,2.6302]
[1736538579874,19.11504882,190.16,190.07,1.6587]
[1736538580568,2.6301,190.1,190.07,1.6587]
[1736538581371,19.11504882,190.13,190.03,3.1974]
[1736538581565,2.6304,190.08,190.03,3.1974]
[1736538582169,2.6304,190.08,190.04,2.6307]
[1736538582965,2.6305,190.07,190.04,2.6307]
[1736538583169,2.6305,190.07,190.03,3.1974]
[1736538583371,2.6305,190.07,190.03,5.8283]
[1736538584871,2.6306,190.06,190.03,3.1974]
[1736538585965,11.96742995,190.08,190.02,1.6666]
[1736538586362,11.96742995,190.08,190.0,7.27688003]
[1736538586363,2.6313,190.01,190.0,7.27688003]
[1736538587171,11.96742995,190.02,189.96,7.27688003]
[1736538587675,2.6314,190.01,189.96,7.27688003]
[1736538587870,11.96742995,190.02,189.96,7.27688003]
[1736538588270,2.6317,189.99,189.94,1.5549]
[1736538588769,2.6317,189.99,189.94,4.1871]
[1736538590675,2.6317,189.99,189.95,2.632]
[1736538590875,2.6314,190.0,189.94,1.5549]
[1736538591271,2.6314,190.0,189.96,2.6319]
[1736538592071,2.6314,190.0,189.95,2.632]
[1736538592479,2.6316,189.99,189.95,2.632]
[1736538594076,2.6316,189.99,189.94,8.83178003]
[1736538594271,5.266,190.02,189.94,8.83178003]
[1736538594870,2.6318,189.98,189.94,1.5549]
[1736538595876,2.6318,189.98,189.94,8.83178003]
[1736538596174,2.6318,189.98,189.94,11.46398003]
[1736538597776,17.25029337,190.0,189.94,7.27688003]
[1736538598076,17.25029337,190.0,189.93,29.11074272]
[1736538598375,2.6322,189.95,189.93,29.11074272]
[1736538599075,2.632,189.96,189.93,29.11074272]
[1736538599271,17.25029337,190.0,189.92,7.27688003]
[1736538600071,6.7735,190.02,189.92,7.27688003]
[1736538600375,17.25029337,190.0,189.92,29.11074272]
[1736538601176,2.6319,189.97,189.93,2.6324]
[1736538601378,17.25029337,190.0,189.92,29.11074272]
[1736538601877,2.6322,189.95,189.92,29.11074272]
[1736538602072,17.25029337,190.0,189.92,29.11074272]
[1736538602274,2.6323,189.94,189.92,29.11074272]
[1736538602772,2.6323,189.94,189.91,29.11074272]
[1736538602977,17.25029337,189.97,189.91,29.11074272]
[1736538603174,5.266,189.93,189.91,29.11074272]
[1736538603574,2.6325,189.92,189.91,29.11074272]
[1736538603878,5.54,189.95,189.9,87.35277499]
[1736538604473,5.54,189.95,189.88,87.3630484]
[1736538604474,5.54,189.95,189.87,29.11074272]
[1736538604978,2.6325,189.93,189.89,2.6329]
[1736538605578,2.6325,189.92,189.88,2.633]
[1736538607683,5.54,189.95,189.87,7.27688003]
[1736538607877,2.6327,189.91,189.87,9.91008003]
[1736538608182,2.6327,189.91,189.87,2.6332]
[1736538608680,5.266,189.94,189.86,29.11074272]
[1736538609182,22.51629337,189.92,189.86,29.11074272]
[1736538609379,10.7945812,189.89,189.86,29.11074272]
[1736538609975,2.6332,189.88,189.86,29.11074272]
[1736538610179,10.7945812,189.92,189.86,29.11074272]
[1736538610378,10.7945812,189.92,189.86,7.27688003]
[1736538610683,2.6329,189.9,189.86,9.91008003]
[1736538611884,13.4271812,189.92,189.88,2.633]
[1736538612077,16.3345812,189.95,189.86,7.27688003]
[1736538612280,10.7945812,189.98,189.86,18.07146123]
[1736538612984,2.6319,189.97,189.92,2.6324]
[1736538613185,10.7945812,189.98,189.92,2.6324]
[1736538613385,10.7945812,189.98,189.88,7.27688003]
[1736538613588,2.6318,189.97,189.88,7.27688003]
[1736538613885,2.6318,189.97,189.91,7.27688003]
[1736538614086,13.4262812,189.98,189.94,2.6321]
[1736538614487,10.7945812,190.01,189.92,1.5612]
[1736538614681,10.7945812,190.01,189.92,3.2056]
[1736538614886,16.3345812,190.04,189.93,1.5024]
[1736538615386,2.6314,190.0,189.96,2.6319]
[1736538616793,2.6313,190.01,189.97,2.6318]
[1736538617385,2.6314,190.0,189.96,2.6319]
[1736538617990,2.6317,189.99,189.95,31.74284272]
[1736538618486,2.6314,190.0,189.96,31.74264272]
[1736538619687,2.6314,190.0,189.96,2.6319]
[1736538622192,10.7945812,190.01,189.95,87.35277499]
[1736538622994,10.7945812,190.04,189.98,2.6317]
[1736538623196,10.7945812,190.04,189.94,87.35277499]
[1736538623388,10.7945812,190.07,189.94,87.35277499]
[1736538623595,10.7945812,190.07,189.95,10.7945812]
[1736538624095,2.6307,190.06,189.95,10.7945812]
[1736538624295,2.6307,190.06,189.97,87.35277499]
[1736538624595,10.7945812,190.1,189.98,10.7945812]
[1736538624792,10.7945812,190.13,190.01,10.7945812]
[1736538624994,10.7945812,190.13,190.02,3.3079]
[1736538625294,10.7945812,190.16,190.04,10.7945812]
[1736538625687,10.7945812,190.16,190.09,2.6301]
[1736538625688,2.6295,190.14,190.09,2.6301]
[1736538626985,10.7945812,190.16,190.07,1.5378]
[1736538627189,2.629,190.17,190.07,12.3323812]
[1736538627391,10.7945812,190.19,190.07,12.3323812]
[1736538628792,10.7945812,190.19,190.08,4.63403708]
[1736538629096,10.7945812,190.19,190.11,2.6298]
[1736538629597,2.6293,190.16,190.11,2.6298]
[1736538631191,10.7945812,190.19,190.11,2.6298]
[1736538631394,2.6295,190.14,190.09,2.63]
[1736538631596,2.6295,190.14,190.07,1.5378]
[1736538631993,10.7945812,190.19,190.1,2.6299]
[1736538632193,10.7945812,190.19,190.07,12.3323812]
[1736538632398,10.7945812,190.22,190.1,10.7945812]
[1736538632691,2.6285,190.21,190.13,10.7945812]
[1736538632894,10.7945812,190.25,190.13,10.7945812]
[1736538633294,2.6281,190.24,190.19,2.6287]
[1736538633690,10.7945812,190.25,190.19,2.6287]
[1736538634899,2.6285,190.21,190.16,2.6292]
[1736538637298,2.6287,190.2,190.16,2.6292]
[1736538637690,10.7945812,190.25,190.17,2.629]
[1736538637890,1.5084,190.34,190.17,10.7945812]
[1736538638091,10.7945812,190.3,190.18,1.5241]
[1736538638291,10.7945812,190.3,190.22,2.6283]
[1736538638495,2.6278,190.26,190.19,3.1642]
[1736538638694,10.7945812,190.3,190.19,3.1642]
[1736538638898,10.7945812,190.3,190.21,2.6284]
[1736538639097,10.7945812,190.3,190.19,3.1642]
[1736538639600,2.6274,190.29,190.19,3.1642]
[1736538639792,10.7945812,190.3,190.19,3.1642]
[1736538641296,2.6282,190.24,190.19,5.7929]
[1736538641505,10.7945812,190.27,190.19,3.1642]
[1736538641895,2.6284,190.22,190.19,3.1642]
[1736538642099,10.7945812,190.24,190.11,10.7945812]
[1736538642301,10.7945812,190.24,190.12,1.5815]
[1736538643307,2.6285,190.21,190.16,2.6291]
[1736538644309,2.6285,190.21,190.12,1.5815]
[1736538644508,2.6284,190.22,190.12,1.5815]
[1736538644705,10.7945812,190.27,190.14,10.7945812]
[1736538645102,2.6281,190.24,190.14,10.7945812]
[1736538645306,16.0605812,190.27,190.14,10.7945812]
[1736538645902,2.628,190.25,190.21,2.6284]
[1736538646316,2.6281,190.24,190.21,2.6284]
[1736538648701,10.7945812,190.27,190.14,18.06572327]
[1736538649008,5.266,190.26,190.14,18.06572327]
[1736538649409,5.266,190.26,190.19,2.6287]
[1736538649800,5.266,190.26,190.14,10.7945812]
[1736538650313,2.6283,190.23,190.17,2.6289]
[1736538650512,10.7945812,190.24,190.14,7.27114207]
[1736538651009,5.266,190.23,190.14,7.27114207]
[1736538651210,2.6287,190.2,190.16,2.6291]
[1736538651608,5.54,190.3,190.14,10.7945812]
[1736538651609,10.7945812,190.28,190.14,10.7945812]
[1736538651808,16.0605812,190.28,190.17,10.7945812]
[1736538652406,2.628,190.25,190.17,10.7945812]
[1736538653309,2.628,190.25,190.21,2.6284]
[1736538654512,2.6277,190.27,190.24,2.6281]
[1736538654711,16.3345812,190.3,190.24,2.6281]
[1736538654912,10.7945812,190.3,190.17,39.8791495]
[1736538655110,2.6277,190.27,190.23,2.6281]
[1736538655315,10.7945812,190.3,190.17,39.8791495]
[1736538655615,2.6277,190.27,190.17,39.8791495]
[1736538655819,2.6277,190.27,190.18,29.0845683]
[1736538656206,2.6277,190.27,190.21,2.6284]
[1736538656414,2.6277,190.27,190.19,4.7002]
[1736538656613,2.6277,190.27,190.19,56.84525495]
[1736538657318,2.6278,190.26,190.22,2.6282]
[1736538657909,2.6281,190.24,190.21,2.6285]
[1736538658313,10.7945812,190.3,190.21,2.6285]
[1736538658513,2.628,190.25,190.21,2.6285]
[1736538660518,2.6282,190.23,190.2,177.13600983]
[1736538661619,2.6282,190.23,190.2,2.6286]
[1736538661818,2.6282,190.23,190.21,2.6285]
[1736538662020,2.6284,190.22,190.19,177.55280983]
[1736538662420,2.6284,190.22,190.19,178.67300983]
[1736538662616,2.6284,190.22,190.19,176.04430983]
[1736538663724,2.6283,190.23,190.2,2.6286]
[1736538664024,10.7945812,190.3,190.19,1.5369]
[1736538670726,2.6273,190.3,190.26,2.6278]
[1736538671821,10.7945812,190.34,190.26,2.6278]